[Event "29. Klatovy C 2023"]
[Site "Klatovy"]
[Date "2023.07.09"]
[Round "9.5"]
[White "Fiser, Jiri2"]
[Black "Korsa, Jindrich"]
[Result "0-1"]
[ECO "B01"]
[WhiteElo "1784"]
[BlackElo "1997"]
[PlyCount "116"]
[EventDate "2023.07.01"]
[EventType "swiss"]
[EventRounds "9"]
[EventCountry "CZE"]
[TimeControl "120+30"]

1. e4 {[%emt 0:00:01]} d5 {[%emt 0:00:06]} 2. exd5 {[%emt 0:00:06]} Qxd5 {[%emt 0:00:04]} 3. Nc3 {[%emt 0:00:09]} Qa5 {[%emt 0:00:04]} 4. d4 {[%emt 0:00:37]} c6 {[%emt 0:00:06]} 5. Bc4 {[%emt 0:00:20]} Nf6 {[%emt 0:00:12]} 6. Nge2 {[%emt 0:00:13]} Bf5 {[%emt 0:00:32]} 7. O-O {[%emt 0:00:14]} e6 {[%emt 0:00:09]} 8. Ng3 {[%emt 0:05:31]} Bd6 {[%emt 0:04:31]} 9. Bd2 {[%emt 0:10:19]} Qc7 {[%emt 0:00:31]} 10. Nxf5 {[%emt 0:04:05]} exf5 {[%emt 0:01:44]} 11. Re1+ {[%emt 0:00:13]} Kf8 {[%emt 0:00:04]} 12. h3 {[%emt 0:00:27]} Nbd7 {[%emt 0:00:18]} 13. Qf3 {[%emt 0:00:31]} f4 {[%emt 0:05:36]} 14. Ne4 {[%emt 0:28:54]} Nxe4 {[%emt 0:00:33]} 15. Qxe4 {[%emt 0:00:09]} Nf6 {[%emt 0:00:42]} 16. Qf5 {[%emt 0:09:36]} Qd7 {[%emt 0:05:18]} 17. Qxd7 {[%emt 0:01:24]} Nxd7 {[%emt 0:00:25]} 18. Re2 {[%emt 0:00:09]} g5 {[%emt 0:04:50]} 19. Rae1 {[%emt 0:01:39]} h5 {[%emt 0:00:18]} 20. f3 {[%emt 0:02:30]} b5 {[%emt 0:06:43]} 21. Bd3 {[%emt 0:00:02]} Nf6 {[%emt 0:00:18]} 22. Bf5 {[%emt 0:04:31]} Rg8 {[%emt 0:01:27]} 23. c3 {[%emt 0:12:46]} Rd8 {[%emt 0:03:16]} 24. b4 {[%emt 0:04:44]} Nd5 {[%emt 0:12:22]} 25. Kf2 {[%emt 0:01:48]} Kg7 {[%emt 0:02:34]} 26. Be4 {[%emt 0:01:25]} Ne7 {[%emt 0:06:17]} 27. a4 {[%emt 0:02:42]} a6 {[%emt 0:00:12]} 28. Bc2 {[%emt 0:06:21]} Kf6 {[%emt 0:00:31]} 29. a5 {[%emt 0:00:35]} Rd7 {[%emt 0:05:51]} 30. Bb1 {[%emt 0:01:24]} Rgd8 {[%emt 0:00:45]} 31. Rd1 {[%emt 0:04:47]} Bc7 {[%emt 0:00:59]} 32. Bc2 {[%emt 0:00:26]} Nf5 {[%emt 0:06:02]} 33. Bxf5 {[%emt 0:00:10]} Kxf5 {[%emt 0:00:00]} 34. Rde1 {[%emt 0:01:05]} Kf6 {[%emt 0:02:07]} 35. Re8 {[%emt 0:00:18]} Bd6 {[%emt 0:00:26]} 36. Rxd8 {[%emt 0:00:24]} Rxd8 {[%emt 0:00:00]} 37. Bc1 {[%emt 0:01:00]} Kg7 {[%emt 0:03:50]} 38. Re4 {[%emt 0:01:05]} f6 {[%emt 0:00:17]} 39. Re1 {[%emt 0:04:22]} Kf7 {[%emt 0:00:24]} 40. Re4 {[%emt 0:07:14]} f5 {[%emt 0:03:46]} 41. Re1 {[%emt 0:00:34]} Rg8 {[%emt 0:01:21]} 42. Re2 {[%emt 0:06:09]} Rg6 {[%emt 0:02:09]} 43. Bd2 {[%emt 0:00:17]} g4 {[%emt 0:04:00]} 44. hxg4 {[%emt 0:00:31]} fxg4 {[%emt 0:01:35]} 45. Re4 {[%emt 0:01:24]} Re6 {[%emt 0:00:59]} 46. Rxe6 {[%emt 0:05:24]} Kxe6 {[%emt 0:00:09]} 47. fxg4 {[%emt 0:00:08]} hxg4 {[%emt 0:00:05]} 48. Ke2 {[%emt 0:00:52]} Kf5 {[%emt 0:00:33]} 49. Kd3 {[%emt 0:01:12]} f3 {[%emt 0:03:54]} 50. gxf3 {[%emt 0:00:01]} gxf3 {[%emt 0:00:01]} 51. Be1 {[%emt 0:02:15]} Bh2 {[%emt 0:03:13]} 52. Ke3 {[%emt 0:02:05]} Kg4 {[%emt 0:00:31]} 53. d5 {[%emt 0:00:26]} cxd5 {[%emt 0:00:16]} 54. Kd4 {[%emt 0:00:02]} Bg3 {[%emt 0:00:13]} 55. Bxg3 {[%emt 0:00:41]} Kxg3 {[%emt 0:00:08]} 56. Kc5 {[%emt 0:00:07]} f2 {[%emt 0:00:04]} 57. Kb6 {[%emt 0:00:06]} f1=Q {[%emt 0:00:10]} 58. Kxa6 {[%emt 0:00:02]} Qc4 {[%emt 0:00:52]} 0-1

[Event "29. Klatovy C 2023"]
[Site "Klatovy"]
[Date "2023.07.09"]
[Round "9.6"]
[White "Plasek, Zdenek"]
[Black "Richter, Martin1"]
[Result "0-1"]
[ECO "A30"]
[WhiteElo "1914"]
[BlackElo "1946"]
[PlyCount "80"]
[EventDate "2023.07.01"]
[EventType "swiss"]
[EventRounds "9"]
[EventCountry "CZE"]
[TimeControl "120+30"]

1. d4 {[%emt 0:12:03]} Nf6 {[%emt 0:00:18]} 2. Nf3 {[%emt 0:00:36]} e6 {[%emt 0:00:20]} 3. g3 {[%emt 0:00:12]} b6 {[%emt 0:01:19]} 4. Bg2 {[%emt 0:00:08]} Bb7 {[%emt 0:00:07]} 5. O-O {[%emt 0:00:19]} c5 {[%emt 0:01:30]} 6. c4 {[%emt 0:02:31]} cxd4 {[%emt 0:01:02]} 7. Qxd4 {[%emt 0:01:11]} Nc6 {[%emt 0:00:40]} 8. Qd1 {[%emt 0:00:02]} Be7 {[%emt 0:04:05]} 9. Nc3 {[%emt 0:00:27]} O-O {[%emt 0:01:30]} 10. Bf4 {[%emt 0:00:41]} Na5 {[%emt 0:15:36]} 11. b3 {[%emt 0:01:39]} d5 {[%emt 0:02:22]} 12. cxd5 {[%emt 0:06:57]} Nxd5 {[%emt 0:03:04]} 13. Nxd5 {[%emt 0:01:30]} Bxd5 {[%emt 0:00:22]} 14. h4 {[%emt 0:04:58]} Rc8 {[%emt 0:05:50]} 15. Rc1 {[%emt 0:00:34]} Nc6 {[%emt 0:01:57]} 16. Qd3 {[%emt 0:05:51]} Nb4 {[%emt 0:07:03]} 17. Qb1 {[%emt 0:00:12]} h6 {[%emt 0:10:22]} 18. Rfd1 {[%emt 0:00:21]} Rxc1 {[%emt 0:00:48]} 19. Bxc1 {[%emt 0:02:29]} Qa8 {[%emt 0:03:32]} 20. a3 {[%emt 0:06:08]} Be4 {[%emt 0:03:52]} 21. Qa1 {[%emt 0:03:51]} Nc2 {[%emt 0:10:20]} 22. Qa2 {[%emt 0:01:19]} Rd8 {[%emt 0:03:33]} 23. Rxd8+ {[%emt 0:03:22]} Qxd8 {[%emt 0:03:01]} 24. Nd2 {[%emt 0:00:27]} Bxg2 {[%emt 0:03:14]} 25. Kxg2 {[%emt 0:00:03]} Nxa3 {[%emt 0:03:22]} 26. Bxa3 {[%emt 0:01:43]} Bxa3 {[%emt 0:00:12]} 27. Qxa3 {[%emt 0:06:34]} Qxd2 {[%emt 0:00:15]} 28. Qxa7 {[%emt 0:00:05]} Qd5+ {[%emt 0:00:21]} 29. f3 {[%emt 0:01:07]} Qxb3 {[%emt 0:00:36]} 30. Qa8+ {[%emt 0:02:33]} Kh7 {[%emt 0:00:32]} 31. Qe8 {[%emt 0:01:07]} Qb2 {[%emt 0:05:21]} 32. Qxf7 {[%emt 0:05:09]} Qxe2+ {[%emt 0:00:07]} 33. Kh3 {[%emt 0:00:06]} Qe5 {[%emt 0:05:55]} 34. Qb7 {[%emt 0:03:17]} b5 {[%emt 0:01:05]} 35. Kg2 {[%emt 0:03:58]} Qd5 {[%emt 0:02:11]} 36. Qb6 {[%emt 0:00:51]} Qc4 {[%emt 0:00:59]} 37. g4 {[%emt 0:09:20]} b4 {[%emt 0:00:37]} 38. Kg3 {[%emt 0:00:53]} b3 {[%emt 0:02:30]} 39. g5 {[%emt 0:02:08]} Qc2 {[%emt 0:01:28]} 40. gxh6 {[%emt 0:00:52]} b2 {[%emt 0:00:22]} 0-1

[Event "29. Klatovy C 2023"]
[Site "Klatovy"]
[Date "2023.07.09"]
[Round "9.7"]
[White "Nisztuk, Michal"]
[Black "Cecil, Pavel"]
[Result "1-0"]
[ECO "C01"]
[WhiteElo "1424"]
[BlackElo "1845"]
[PlyCount "120"]
[EventDate "2023.07.01"]
[EventType "swiss"]
[EventRounds "9"]
[EventCountry "CZE"]
[TimeControl "120+30"]

1. e4 {[%emt 12:06:28]} e6 {[%emt 0:00:07]} 2. d4 {[%emt 0:00:27]} d5 {[%emt 0:00:02]} 3. exd5 {[%emt 0:00:22]} exd5 {[%emt 0:00:02]} 4. c4 {[%emt 0:00:21]} Qe7+ {[%emt 0:00:38]} 5. Be3 {[%emt 0:00:54]} Nf6 {[%emt 0:05:39]} 6. Nc3 {[%emt 0:00:25]} c6 {[%emt 0:01:02]} 7. Nf3 {[%emt 0:00:50]} Be6 {[%emt 0:04:21]} 8. cxd5 {[%emt 0:01:36]} Nxd5 {[%emt 0:00:47]} 9. Bd3 {[%emt 0:00:46]} g6 {[%emt 0:03:34]} 10. O-O {[%emt 0:02:30]} Bg7 {[%emt 0:00:24]} 11. Qd2 {[%emt 0:01:08]} O-O {[%emt 0:04:22]} 12. Bg5 {[%emt 0:00:23]} Qc7 {[%emt 0:02:52]} 13. Bh6 {[%emt 0:00:41]} Nd7 {[%emt 0:02:12]} 14. Bxg7 {[%emt 0:00:52]} Kxg7 {[%emt 0:00:02]} 15. Ng5 {[%emt 0:02:01]} Rae8 {[%emt 0:01:52]} 16. Rac1 {[%emt 0:01:00]} Qf4 {[%emt 0:01:05]} 17. Nxe6+ {[%emt 0:03:19]} Rxe6 {[%emt 0:00:04]} 18. Qxf4 {[%emt 0:02:22]} Nxf4 {[%emt 0:00:03]} 19. Bc4 {[%emt 0:00:37]} Rd6 {[%emt 0:01:02]} 20. Rcd1 {[%emt 0:06:00]} Nb6 {[%emt 0:02:00]} 21. Bb3 {[%emt 0:00:40]} Rfd8 {[%emt 0:01:15]} 22. Rfe1 {[%emt 0:09:03]} Kf8 {[%emt 0:07:55]} 23. Re4 {[%emt 0:01:32]} Ne6 {[%emt 0:01:03]} 24. Rde1 {[%emt 0:01:51]} Nxd4 {[%emt 0:04:01]} 25. Bd1 {[%emt 0:01:51]} Re6 {[%emt 0:04:32]} 26. g3 {[%emt 0:02:23]} Rxe4 {[%emt 0:00:57]} 27. Nxe4 {[%emt 0:02:17]} Nd5 {[%emt 0:01:24]} 28. Kf1 {[%emt 0:02:10]} b6 {[%emt 0:03:06]} 29. f4 {[%emt 0:02:55]} h6 {[%emt 0:03:59]} 30. a3 {[%emt 0:00:47]} f5 {[%emt 0:00:37]} 31. Nf2 {[%emt 0:01:11]} Re8 {[%emt 0:00:56]} 32. Nd3 {[%emt 0:04:51]} Ne3+ {[%emt 0:02:31]} 33. Kf2 {[%emt 0:01:37]} Nxd1+ {[%emt 0:01:30]} 34. Rxd1 {[%emt 0:00:20]} c5 {[%emt 0:03:53]} 35. Ne5 {[%emt 0:00:26]} Kg7 {[%emt 0:02:03]} 36. b4 {[%emt 0:01:34]} Rc8 {[%emt 0:02:20]} 37. Rd2 {[%emt 0:01:00]} Rc7 {[%emt 0:02:40]} 38. Ke3 {[%emt 0:00:22]} a5 {[%emt 0:03:05]} 39. Kd3 {[%emt 0:02:14]} Nb5 {[%emt 0:02:35]} 40. a4 {[%emt 0:02:20]} Nd6 {[%emt 0:00:18]} 41. b5 {[%emt 0:01:50]} Nf7 {[%emt 0:03:23]} 42. Kc4 {[%emt 0:01:50]} Nxe5+ {[%emt 0:02:12]} 43. fxe5 {[%emt 0:00:02]} Re7 {[%emt 0:00:44]} 44. Rd6 {[%emt 0:01:50]} Rxe5 {[%emt 0:00:54]} 45. Rxb6 {[%emt 0:00:38]} g5 {[%emt 0:02:18]} 46. Rc6 {[%emt 0:01:50]} f4 {[%emt 0:00:20]} 47. gxf4 {[%emt 0:08:15]} gxf4 {[%emt 0:00:04]} 48. Rd6 {[%emt 0:01:24]} f3 {[%emt 0:07:45]} 49. Rd1 {[%emt 0:00:37]} Re4+ {[%emt 0:05:29]} 50. Kxc5 {[%emt 0:00:27]} Rxa4 {[%emt 0:00:13]} 51. b6 {[%emt 0:04:08]} Rb4 {[%emt 0:00:55]} 52. Ra1 {[%emt 0:01:41]} f2 {[%emt 0:00:38]} 53. Kc6 {[%emt 0:01:36]} Kg6 {[%emt 0:01:01]} 54. Rf1 {[%emt 0:02:44]} Rb2 {[%emt 0:03:36]} 55. b7 {[%emt 0:03:44]} Kg5 {[%emt 0:02:17]} 56. Rxf2 {[%emt 0:00:32]} Rxf2 {[%emt 0:00:03]} 57. b8=Q {[%emt 0:00:39]} Rf5 {[%emt 0:00:08]} 58. Qg3+ {[%emt 0:01:11]} Kf6 {[%emt 0:00:39]} 59. Kd6 {[%emt 0:00:36]} Rg5 {[%emt 0:03:24]} 60. Qf4+ {[%emt 0:01:36]} Kg6 {[%emt 0:00:10]} 1-0

[Event "29. Klatovy C 2023"]
[Site "Klatovy"]
[Date "2023.07.09"]
[Round "9.8"]
[White "Truksa, Vaclav"]
[Black "Havelka, Petr"]
[Result "1/2-1/2"]
[ECO "D02"]
[WhiteElo "1725"]
[BlackElo "1770"]
[PlyCount "20"]
[EventDate "2023.07.01"]
[EventType "swiss"]
[EventRounds "9"]
[EventCountry "CZE"]
[TimeControl "120+30"]

1. d4 {[%emt 0:00:03]} d5 {[%emt 0:00:10]} 2. Bf4 {[%emt 0:01:00]} Nf6 {[%emt 0:00:37]} 3. e3 {[%emt 0:00:22]} Bf5 {[%emt 0:01:48]} 4. Bd3 {[%emt 0:00:18]} Bxd3 {[%emt 0:00:42]} 5. Qxd3 {[%emt 0:00:15]} c6 {[%emt 0:01:21]} 6. Nd2 {[%emt 0:00:43]} e6 {[%emt 0:01:20]} 7. Ngf3 {[%emt 0:01:58]} Bd6 {[%emt 0:02:31]} 8. Bxd6 {[%emt 0:00:59]} Qxd6 {[%emt 0:00:17]} 9. O-O {[%emt 0:00:15]} O-O {[%emt 0:00:17]} 10. c3 {[%emt 0:02:32]} Nbd7 {[%emt 0:00:27]} 1/2-1/2